fUSD/lending_fUSD_20250209
["ID","MTS","AMOUNT","RATE_DAILY","PERIOD"]
[352425897,1739095861007,-2000.0,0.00010959,2]
[352425898,1739095861016,-2000.0,0.00010959,2]
[352425899,1739095861027,-2000.0,0.00010959,2]
[352425900,1739095861036,-500.0,0.00010959,2]
[352425901,1739095861045,-200.0,0.00010959,2]
[352425902,1739095861055,-200.0,0.00010959,2]
[352425903,1739095861063,-200.0,0.00010959,2]
[352425904,1739095861072,-14622.0,0.00010959,2]
[352425905,1739095861083,-4000.0,0.00010959,2]
[352425906,1739095861092,-150.0,0.00010959,2]
[352425907,1739095861102,-984.47,0.00010959,2]
[352425908,1739095861111,-150.0,0.00010959,2]
[352425909,1739095861120,-876.81,0.00010959,2]
[352425910,1739095861130,-150.0,0.00010959,2]
[352425911,1739095861140,-151.0,0.00010959,2]
[352425912,1739095861150,-150.0,0.00010961,2]
[352425913,1739095861159,-697.0,0.00010976,2]
[352425914,1739095861170,-300.0,0.00010985,2]
[352425915,1739095861179,-300.0,0.00010985,2]
[352425916,1739095861189,-300.0,0.00010985,2]
[352425917,1739095861199,-300.0,0.00010985,2]
[352425918,1739095861208,-300.0,0.00010985,2]
[352425919,1739095861217,-151.0,0.00010986,2]
[352425920,1739095861227,-214.42718,0.00010986,2]
[352425921,1739095861236,-214.42718,0.00010986,2]
[352425922,1739095861245,-151.595202,0.00010986,2]
[352425923,1739095861254,-151.595202,0.00010986,2]
[352425924,1739095861263,-151.0,0.00010986,2]
[352425925,1739095861272,-151.0,0.00010986,2]
[352425926,1739095861281,-508.77,0.00010986,2]
[352425927,1739095861290,-151.0,0.00010986,2]
[352425928,1739095861300,-782.96,0.00010986,2]
[352425929,1739095861309,-236631.0,0.00010986,2]
[352425930,1739095861318,-782.96,0.00010997,2]
[352425931,1739095861328,-508.77,0.00010998,2]
[352425932,1739095861338,-508.77,0.00010998,2]
[352425933,1739095861347,-508.77,0.00010998,2]
[352425934,1739095861356,-508.77,0.00010998,2]
[352425935,1739095861365,-508.77,0.00010998,2]
[352425936,1739095861374,-508.77,0.00010998,2]
[352425937,1739095861383,-508.77,0.00010998,2]
[352425938,1739095861392,-508.77,0.00010998,2]
[352425939,1739095861401,-508.77,0.00010998,2]
[352425940,1739095861410,-508.77,0.00010998,2]
[352425941,1739095861419,-508.77,0.00010998,2]
[352425942,1739095861427,-508.77,0.00010998,2]
[352425943,1739095861436,-508.77,0.00010998,2]
[352425944,1739095861445,-508.77,0.00010998,2]
[352425945,1739095861454,-508.77,0.00010998,2]
[352425946,1739095861463,-508.95681241,0.00010998,2]
[352425947,1739095861471,-782.96,0.00010999,2]
[352425948,1739095861480,-782.96,0.00010999,2]
[352425949,1739095861490,-782.96,0.00010999,2]
[352425950,1739095861499,-782.96,0.00010999,2]
[352425951,1739095861508,-782.96,0.00010999,2]
[352425952,1739095861517,-782.96,0.00010999,2]
[352425953,1739095861526,-783.04914137,0.00010999,2]
[352425954,1739095861535,-420.0,0.00010999,2]
[352425955,1739095861544,-300.0,0.00010999,2]
[352425956,1739095861553,-300.0,0.00010999,2]
[352425957,1739095861562,-219.89780956,0.00010999,2]
[352425958,1739095861571,-300.0,0.00010999,2]
[352425959,1739095861580,-300.0,0.00010999,2]
[352425960,1739095861589,-609766.0,0.00011,2]
[352425961,1739095861598,-500.0,0.00011,2]
[352425962,1739095861608,-161015.75566048,0.00011,2]
[352425963,1739095861617,-5396.08780009,0.00011,2]
[352425964,1739095861627,-65983.38457966,0.00011,2]
[352425965,1739095861636,-151.0,0.00011,2]
[352425966,1739095861645,-151.0,0.00011,2]
[352425967,1739095861655,-214.42718,0.00011,2]
[352425968,1739095861664,-214.42718,0.00011,2]
[352425969,1739095861673,-151.595202,0.00011,2]
[352425970,1739095861683,-151.595202,0.00011,2]
[352425971,1739095861692,-151.595202,0.00011,2]
[352425972,1739095861701,-151.595202,0.00011,2]
[352425973,1739095861710,-151.0,0.00011,2]
[352425974,1739095861719,-151.0,0.00011,2]
[352425975,1739095861728,-151.0,0.00011,2]
[352425976,1739095861736,-151.0,0.00011,2]
[352425977,1739095861746,-151.0,0.00011,2]
[352425978,1739095861755,-151.0,0.00011,2]
[352425979,1739095861765,-151.0,0.00011,2]
[352425980,1739095861774,-151.0,0.00011,2]
[352425981,1739095861783,-151.0,0.00011,2]
[352425982,1739095861792,-151.0,0.00011,2]
[352425983,1739095861801,-151.0,0.00011,2]
[352425984,1739095861810,-151.0,0.00011,2]
[352425985,1739095861820,-151.0,0.00011,2]
[352425986,1739095861829,-151.0,0.00011,2]
[352425987,1739095861838,-151.0,0.00011,2]
[352425988,1739095861847,-151.0,0.00011,2]
[352425989,1739095861856,-151.0,0.00011,2]
[352425990,1739095861865,-151.0,0.00011,2]
[352425991,1739095861875,-151.0,0.00011,2]
[352425992,1739095861885,-151.0,0.00011,2]
[352425993,1739095861894,-151.0,0.00011,2]
[352425994,1739095861904,-151.0,0.00011,2]
[352425995,1739095861913,-151.0,0.00011,2]
[352425996,1739095861922,-151.0,0.00011,2]
[352425997,1739095861931,-151.0,0.00011,2]
[352425998,1739095861940,-151.0,0.00011,2]
[352425999,1739095861951,-151.0,0.00011,2]
[352426000,1739095861962,-151.0,0.00011,2]
[352426001,1739095861972,-151.0,0.00011,2]
[352426002,1739095861981,-151.0,0.00011,2]
[352426003,1739095861990,-151.0,0.00011,2]
[352426004,1739095862001,-151.0,0.00011,2]
[352426005,1739095862010,-151.0,0.00011,2]
[352426006,1739095862019,-151.0,0.00011,2]
[352426007,1739095862027,-151.0,0.00011,2]
[352426008,1739095862037,-151.0,0.00011,2]
[352426009,1739095862047,-151.0,0.00011,2]
[352426010,1739095862056,-151.0,0.00011,2]
[352426011,1739095862065,-151.0,0.00011,2]
[352426012,1739095862075,-151.0,0.00011,2]
[352426013,1739095862084,-151.0,0.00011,2]
[352426014,1739095862093,-151.0,0.00011,2]
[352426015,1739095862102,-151.0,0.00011,2]
[352426016,1739095862111,-151.0,0.00011,2]
[352426017,1739095862120,-151.0,0.00011,2]
[352426018,1739095862129,-151.0,0.00011,2]
[352426019,1739095862138,-151.0,0.00011,2]
[352426020,1739095862147,-151.0,0.00011,2]
[352426021,1739095862156,-151.0,0.00011,2]
[352426022,1739095862167,-151.0,0.00011,2]
[352426023,1739095862176,-151.0,0.00011,2]
[352426024,1739095862185,-151.0,0.00011,2]
[352426025,1739095862194,-151.0,0.00011,2]
[352426026,1739095862203,-151.0,0.00011,2]
[352426027,1739095862212,-151.0,0.00011,2]
[352426028,1739095862221,-151.0,0.00011,2]
[352426029,1739095862230,-151.0,0.00011,2]
[352426030,1739095862239,-151.0,0.00011,2]
[352426031,1739095862249,-151.0,0.00011,2]
[352426032,1739095862258,-151.0,0.00011,2]
[352426033,1739095862267,-151.0,0.00011,2]
[352426034,1739095862276,-151.0,0.00011,2]
[352426035,1739095862284,-151.0,0.00011,2]
[352426036,1739095862293,-151.0,0.00011,2]
[352426037,1739095862302,-151.0,0.00011,2]
[352426038,1739095862311,-151.0,0.00011,2]
[352426039,1739095862320,-151.0,0.00011,2]
[352426040,1739095862328,-151.0,0.00011,2]
[352426041,1739095862337,-151.0,0.00011,2]
[352426042,1739095862346,-151.0,0.00011,2]
[352426043,1739095862354,-151.0,0.00011,2]
[352426044,1739095862363,-151.0,0.00011,2]
[352426045,1739095862372,-151.0,0.00011,2]
[352426046,1739095862381,-151.0,0.00011,2]
[352426047,1739095862390,-151.0,0.00011,2]
[352426048,1739095862399,-151.0,0.00011,2]
[352426049,1739095862407,-151.0,0.00011,2]
[352426050,1739095862416,-151.0,0.00011,2]
[352426051,1739095862425,-151.0,0.00011,2]
[352426052,1739095862435,-151.0,0.00011,2]
[352426053,1739095862443,-151.0,0.00011,2]
[352426054,1739095862452,-151.0,0.00011,2]
[352426055,1739095862461,-151.0,0.00011,2]
[352426056,1739095862470,-151.0,0.00011,2]
[352426057,1739095862478,-151.0,0.00011,2]
[352426058,1739095862487,-151.0,0.00011,2]
[352426059,1739095862497,-151.0,0.00011,2]
[352426060,1739095862506,-254.63505,0.00011,2]
[352426061,1739095862515,-152.64,0.00011,2]
[352426062,1739095862524,-697.0,0.00011004,2]
[352426063,1739095862533,-150.0,0.00011006,2]
[352426064,1739095862542,-150.0,0.00011018,2]
[352426065,1739095862551,-150.0,0.0001102,2]
[352426066,1739095862560,-1005.48635459,0.00011021,2]
[352426067,1739095862569,-1000.0,0.00011021,2]
[352426068,1739095862578,-626.67699444,0.00011031,2]
[352426069,1739095862587,-697.0,0.00011031,2]
[352426070,1739095862597,-150.0,0.00011041,2]
[352426071,1739095862606,-204.37,0.00011041,2]
[352426072,1739095862615,-150.0,0.00011041,2]
[352426073,1739095862624,-500.0,0.00011044,2]
[352426074,1739095862633,-1152.27,0.00011045,2]
[352426075,1739095862642,-724.17,0.00011045,2]
[352426076,1739095862651,-1132.72,0.00011045,2]
[352426077,1739095862660,-1357.8,0.00011045,2]
[352426078,1739095862669,-500.0,0.00011045,2]
[352426079,1739095862679,-1150.02,0.00011045,2]
[352426080,1739095862688,-880.85,0.00011045,2]
[352426081,1739095862697,-1015.0,0.00011045,2]
[352426082,1739095862706,-500.0,0.00011045,2]
[352426083,1739095862715,-1257.71,0.00011045,2]
[352426084,1739095862724,-1341.32,0.00011045,2]
[352426085,1739095862733,-698.83,0.00011045,2]
[352426086,1739095862742,-1461.08,0.00011045,2]
[352426087,1739095862751,-1576.02,0.00011045,2]
[352426088,1739095862760,-1475.76,0.00011045,2]
[352426089,1739095862768,-1506.32,0.00011045,2]
[352426090,1739095862777,-1494.26,0.00011045,2]
[352426091,1739095862786,-500.0,0.00011045,2]
[352426092,1739095862795,-1208.06,0.00011045,2]
[352426093,1739095862804,-1283.21,0.00011045,2]
[352426094,1739095862813,-500.0,0.00011045,2]
[352426095,1739095862822,-500.0,0.00011045,2]
[352426096,1739095862831,-668.93,0.00011045,2]
[352426097,1739095862840,-532.29,0.00011045,2]
[352426098,1739095862849,-500.0,0.00011045,2]
[352426099,1739095862858,-500.0,0.00011045,2]
[352426100,1739095862867,-631.57,0.00011045,2]
[352426101,1739095862877,-500.0,0.00011045,2]
[352426102,1739095862886,-500.0,0.00011045,2]
[352426103,1739095862895,-1328.43,0.00011045,2]
[352426104,1739095862904,-500.0,0.00011046,2]
[352426105,1739095862914,-500.0,0.00011046,2]
[352426106,1739095862923,-500.0,0.00011046,2]
[352426107,1739095862932,-500.0,0.00011046,2]
[352426108,1739095862941,-500.0,0.00011046,2]
[352426109,1739095862951,-500.0,0.00011046,2]
[352426110,1739095862962,-500.0,0.00011046,2]
[352426111,1739095862971,-500.0,0.00011046,2]
[352426112,1739095862980,-500.0,0.00011046,2]
[352426113,1739095862990,-500.0,0.00011046,2]
[352426114,1739095862999,-563.55231761,0.00011046,2]
[352426115,1739095863008,-500.0,0.00011046,2]
[352426116,1739095863018,-500.0,0.00011046,2]
[352426117,1739095863028,-500.0,0.00011046,2]
[352426118,1739095863037,-500.0,0.00011046,2]
[352426119,1739095863046,-599.66,0.00011046,2]
[352426120,1739095863056,-533.15,0.00011046,2]
[352426121,1739095863065,-500.0,0.00011046,2]
[352426122,1739095863074,-500.0,0.00011046,2]
[352426123,1739095863084,-300.0,0.00011046,2]
[352426124,1739095863093,-714.67,0.00011046,2]
[352426125,1739095863102,-500.0,0.00011046,2]
[352426126,1739095863111,-510.82,0.00011046,2]
[352426127,1739095863120,-500.0,0.00011046,2]
[352426128,1739095863130,-500.0,0.00011046,2]
[352426129,1739095863139,-575.28,0.00011046,2]
[352426130,1739095863148,-500.0,0.00011046,2]
[352426131,1739095863157,-500.0,0.00011046,2]
[352426132,1739095863167,-500.0,0.00011046,2]
[352426133,1739095863177,-594.56,0.00011046,2]
[352426134,1739095863186,-1213.56,0.00011046,2]
[352426135,1739095863196,-500.0,0.00011046,2]
[352426136,1739095863206,-588.03,0.00011046,2]
[352426137,1739095863215,-733.97644,0.00011046,2]
[352426138,1739095863225,-529.87,0.00011046,2]
[352426139,1739095863235,-957.726417,0.00011046,2]
[352426140,1739095863243,-781.27,0.00011046,2]
[352426141,1739095863253,-155.948277,0.00011046,2]
[352426142,1739095863262,-970.52,0.00011046,2]
[352426143,1739095863271,-537.11,0.00011046,2]
[352426144,1739095863280,-500.0,0.00011046,2]
[352426145,1739095863289,-2972.23,0.00011046,2]
[352426146,1739095863298,-666.32,0.00011046,2]
[352426147,1739095863307,-1280.02,0.00011046,2]
[352426148,1739095863316,-1201.1,0.00011046,2]
[352426149,1739095863326,-500.0,0.00011046,2]
[352426150,1739095863335,-1268.87,0.00011046,2]
[352426151,1739095863344,-632.14,0.00011046,2]
[352426152,1739095863353,-944.53,0.00011046,2]
[352426153,1739095863362,-702.27,0.00011046,2]
[352426154,1739095863371,-1188.01,0.00011046,2]
[352426155,1739095863381,-500.0,0.00011046,2]
[352426156,1739095863391,-2680.97,0.00011046,2]
[352426157,1739095863400,-801.63,0.00011046,2]
[352426158,1739095863409,-184.73598551,0.00011046,2]
[352426159,1739095863418,-1475.77,0.00011046,2]
[352426160,1739095863427,-500.0,0.00011046,2]
[352426161,1739095863437,-679.18,0.00011046,2]
[352426162,1739095863446,-500.0,0.00011046,2]
[352426163,1739095863455,-500.0,0.00011046,2]
[352426164,1739095863464,-679.7,0.00011046,2]
[352426165,1739095863474,-500.0,0.00011046,2]
[352426166,1739095863483,-770.02,0.00011046,2]
[352426167,1739095863492,-500.0,0.00011046,2]
[352426168,1739095863501,-500.0,0.00011046,2]
[352426169,1739095863509,-500.0,0.00011046,2]
[352426170,1739095863518,-500.0,0.00011047,2]
[352426171,1739095863528,-421.37318841,0.00011047,2]
[352426172,1739095863537,-500.0,0.00011047,2]
[352426173,1739095863546,-500.0,0.00011047,2]
[352426174,1739095863555,-500.0,0.00011047,2]
[352426175,1739095863565,-500.0,0.00011047,2]
[352426176,1739095863573,-500.0,0.00011047,2]
[352426177,1739095863581,-500.0,0.00011047,2]
[352426178,1739095863591,-379.57182182,0.00011047,2]
[352426179,1739095863600,-500.0,0.00011047,2]
[352426180,1739095863609,-500.0,0.00011047,2]
[352426181,1739095863619,-1239.95,0.00011047,2]
[352426182,1739095863628,-500.0,0.00011047,2]
[352426183,1739095863638,-500.0,0.00011047,2]
[352426184,1739095863647,-500.0,0.00011047,2]
[352426185,1739095863658,-555.71,0.00011047,2]
[352426186,1739095863667,-500.0,0.00011047,2]
[352426187,1739095863677,-500.0,0.00011047,2]
[352426188,1739095863685,-500.0,0.00011047,2]
[352426189,1739095863695,-500.0,0.00011047,2]
[352426190,1739095863704,-500.0,0.00011047,2]
[352426191,1739095863713,-500.0,0.00011047,2]
[352426192,1739095863721,-500.0,0.00011047,2]
[352426193,1739095863731,-500.0,0.00011047,2]
[352426194,1739095863739,-500.0,0.00011047,2]
[352426195,1739095863749,-500.0,0.00011047,2]
[352426196,1739095863758,-500.0,0.00011047,2]
[352426197,1739095863767,-587.11,0.00011047,2]
[352426198,1739095863776,-506.94376593,0.00011047,2]
[352426199,1739095863785,-500.0,0.00011047,2]
[352426200,1739095863795,-500.0,0.00011047,2]
[352426201,1739095863804,-500.0,0.00011047,2]
[352426202,1739095863814,-500.0,0.00011047,2]
[352426203,1739095863823,-500.0,0.00011047,2]
[352426204,1739095863832,-500.0,0.00011047,2]
[352426205,1739095863842,-546.55,0.00011047,2]
[352426206,1739095863851,-500.0,0.00011047,2]
[352426207,1739095863860,-500.0,0.00011047,2]
[352426208,1739095863869,-500.0,0.00011047,2]
[352426209,1739095863879,-500.0,0.00011047,2]
[352426210,1739095863888,-500.0,0.00011047,2]
[352426211,1739095863897,-550.19,0.00011047,2]
[352426212,1739095863906,-612.35,0.00011047,2]
[352426213,1739095863916,-830.04,0.00011047,2]
[352426214,1739095863925,-1383.45,0.00011047,2]
[352426215,1739095863934,-1630.8,0.00011047,2]
[352426216,1739095863943,-500.0,0.00011047,2]
[352426217,1739095863955,-1585.45,0.00011047,2]
[352426218,1739095863964,-591.04,0.00011047,2]
[352426219,1739095863974,-2273.72,0.00011047,2]
[352426220,1739095863983,-500.0,0.00011047,2]
[352426221,1739095863991,-819.17,0.00011047,2]
[352426222,1739095864002,-1111.04,0.00011047,2]
[352426223,1739095864011,-1302.26,0.00011047,2]
[352426224,1739095864020,-1487.54,0.00011047,2]
[352426225,1739095864029,-500.0,0.00011047,2]
[352426226,1739095864040,-1111.22,0.00011047,2]
[352426227,1739095864050,-1031.34,0.00011047,2]
[352426228,1739095864060,-500.0,0.00011047,2]
[352426229,1739095864069,-967.2,0.00011047,2]
[352426230,1739095864078,-747.38,0.00011047,2]
[352426231,1739095864087,-500.0,0.00011047,2]
[352426232,1739095864097,-1032.96,0.00011047,2]
[352426233,1739095864106,-829.73,0.00011047,2]
[352426234,1739095864115,-669.95,0.00011047,2]
[352426235,1739095864125,-500.0,0.00011047,2]
[352426236,1739095864134,-500.0,0.00011047,2]
[352426237,1739095864144,-1044.85,0.00011047,2]
[352426238,1739095864153,-1479.18,0.00011047,2]
[352426239,1739095864163,-698.47,0.00011047,2]
[352426240,1739095864173,-1465.35,0.00011047,2]
[352426241,1739095864183,-1918.5,0.00011047,2]
[352426242,1739095864192,-1080.16,0.00011047,2]
[352426243,1739095864202,-1493.17,0.00011047,2]
[352426244,1739095864212,-500.0,0.00011047,2]
[352426245,1739095864222,-500.0,0.00011047,2]
[352426246,1739095864231,-1116.87,0.00011047,2]
[352426247,1739095864240,-1703.91,0.00011047,2]
[352426248,1739095864250,-1227.31,0.00011047,2]
[352426249,1739095864259,-955.79,0.00011047,2]
[352426250,1739095864268,-509.24,0.00011047,2]
[352426251,1739095864278,-1379.38,0.00011047,2]
[352426252,1739095864289,-500.0,0.00011047,2]
[352426253,1739095864300,-3396.14,0.00011047,2]
[352426254,1739095864311,-1580.08,0.00011047,2]
[352426255,1739095864320,-1184.37,0.00011047,2]
[352426256,1739095864330,-1373.36,0.00011047,2]
[352426257,1739095864339,-783.87,0.00011047,2]
[352426258,1739095864349,-1000.0,0.00011047,2]
[352426259,1739095864359,-1456.24,0.00011047,2]
[352426260,1739095864368,-756.71,0.00011047,2]
[352426261,1739095864377,-1314.38,0.00011047,2]
[352426262,1739095864387,-500.0,0.00011047,2]
[352426263,1739095864397,-912.33,0.00011047,2]
[352426264,1739095864406,-743.47,0.00011047,2]
[352426265,1739095864417,-557.2,0.00011047,2]
[352426266,1739095864426,-1107.21,0.00011047,2]
[352426267,1739095864436,-1216.55,0.00011047,2]
[352426268,1739095864446,-1685.79,0.00011047,2]
[352426269,1739095864455,-1209.48,0.00011047,2]
[352426270,1739095864465,-500.0,0.00011047,2]
[352426271,1739095864475,-500.0,0.00011047,2]
[352426272,1739095864484,-574.57,0.00011047,2]
[352426273,1739095864494,-500.0,0.00011047,2]
[352426274,1739095864504,-500.0,0.00011047,2]
[352426275,1739095864513,-1320.75,0.00011047,2]
[352426276,1739095864523,-834.03,0.00011047,2]
[352426277,1739095864532,-500.0,0.00011047,2]
[352426278,1739095864542,-912.85,0.00011047,2]
[352426279,1739095864552,-1117.53,0.00011047,2]
[352426280,1739095864561,-500.0,0.00011047,2]
[352426281,1739095864571,-697.0,0.00011059,2]
[352426282,1739095864580,-150.0,0.00011072,2]
[352426283,1739095864589,-300.0,0.00011079,2]
[352426284,1739095864599,-541.3,0.0001108,2]
[352426285,1739095864608,-500.0,0.0001108,2]
[352426286,1739095864617,-500.0,0.0001108,2]
[352426287,1739095864626,-214.6224824,0.0001108,2]
[352426288,1739095864636,-500.0,0.0001108,2]
[352426289,1739095864645,-1087.04,0.0001108,2]
[352426290,1739095864654,-500.0,0.0001108,2]
[352426291,1739095864663,-500.0,0.0001108,2]
[352426292,1739095864674,-500.0,0.0001108,2]
[352426293,1739095864684,-500.0,0.0001108,2]
[352426294,1739095864693,-517.6,0.0001108,2]
[352426295,1739095864703,-500.0,0.0001108,2]
[352426296,1739095864713,-500.0,0.0001108,2]
[352426297,1739095864723,-500.0,0.0001108,2]
[352426298,1739095864733,-500.0,0.0001108,2]
[352426299,1739095864743,-485.03029543,0.0001108,2]
[352426300,1739095864752,-685.98,0.0001108,2]
[352426301,1739095864763,-500.0,0.0001108,2]
[352426302,1739095864772,-500.0,0.0001108,2]
[352426303,1739095864782,-500.0,0.0001108,2]
[352426304,1739095864791,-500.0,0.0001108,2]
[352426305,1739095864801,-500.0,0.0001108,2]
[352426306,1739095864811,-500.0,0.0001108,2]
[352426307,1739095864822,-500.0,0.0001108,2]
[352426308,1739095864831,-614.19,0.0001108,2]
[352426309,1739095864840,-500.0,0.0001108,2]
[352426310,1739095864849,-500.0,0.0001108,2]
[352426311,1739095864859,-500.0,0.0001108,2]
[352426312,1739095864868,-500.0,0.0001108,2]
[352426313,1739095864878,-500.0,0.0001108,2]
[352426314,1739095864888,-576.84,0.0001108,2]
[352426315,1739095864897,-500.0,0.0001108,2]
[352426316,1739095864907,-500.0,0.0001108,2]
[352426317,1739095864917,-500.0,0.0001108,2]
[352426318,1739095864927,-500.0,0.0001108,2]
[352426319,1739095864936,-500.0,0.0001108,2]
[352426320,1739095864947,-665.4,0.0001108,2]
[352426321,1739095864959,-500.0,0.0001108,2]
[352426322,1739095864971,-500.0,0.0001108,2]
[352426323,1739095864981,-500.0,0.0001108,2]
[352426324,1739095864990,-500.0,0.0001108,2]
[352426325,1739095865001,-650.78,0.0001108,2]
[352426326,1739095865012,-500.0,0.0001108,2]
[352426327,1739095865023,-692.49,0.0001108,2]
[352426328,1739095865035,-1032.18,0.0001108,2]
[352426329,1739095865045,-500.0,0.0001108,2]
[352426330,1739095865055,-500.0,0.0001108,2]
[352426331,1739095865064,-500.0,0.0001108,2]
[352426332,1739095865074,-500.0,0.0001108,2]
[352426333,1739095865083,-500.0,0.0001108,2]
[352426334,1739095865093,-500.0,0.0001108,2]
[352426335,1739095865104,-500.0,0.0001108,2]
[352426336,1739095865114,-577.91,0.0001108,2]
[352426337,1739095865125,-500.0,0.0001108,2]
[352426338,1739095865134,-511.0,0.0001108,2]
[352426339,1739095865144,-500.0,0.0001108,2]
[352426340,1739095865153,-500.0,0.0001108,2]
[352426341,1739095865163,-500.0,0.0001108,2]
[352426342,1739095865173,-500.0,0.0001108,2]
[352426343,1739095865183,-500.0,0.0001108,2]
[352426344,1739095865193,-500.0,0.0001108,2]
[352426345,1739095865202,-500.0,0.0001108,2]
[352426346,1739095865211,-500.0,0.0001108,2]
[352426347,1739095865221,-500.0,0.0001108,2]
[352426348,1739095865231,-500.0,0.0001108,2]
[352426349,1739095865240,-500.0,0.0001108,2]
[352426350,1739095865249,-500.0,0.0001108,2]
[352426351,1739095865259,-500.0,0.0001108,2]
[352426352,1739095865269,-500.0,0.0001108,2]
[352426353,1739095865278,-500.0,0.0001108,2]
[352426354,1739095865287,-583.79,0.0001108,2]
[352426355,1739095865297,-500.0,0.0001108,2]
[352426356,1739095865307,-500.0,0.0001108,2]
[352426357,1739095865316,-500.0,0.0001108,2]
[352426358,1739095865325,-500.0,0.0001108,2]
[352426359,1739095865335,-500.0,0.0001108,2]
[352426360,1739095865344,-500.0,0.0001108,2]
[352426361,1739095865353,-500.0,0.0001108,2]
[352426362,1739095865363,-633.0,0.0001108,2]
[352426363,1739095865372,-292.0,0.0001108,2]
[352426364,1739095865382,-711.52,0.0001108,2]
[352426365,1739095865392,-829.67,0.0001108,2]
[352426366,1739095865401,-500.0,0.0001108,2]
[352426367,1739095865411,-500.0,0.0001108,2]
[352426368,1739095865422,-500.0,0.0001108,2]
[352426369,1739095865431,-755.01,0.0001108,2]
[352426370,1739095865441,-577.83,0.0001108,2]
[352426371,1739095865451,-759.26,0.0001108,2]
[352426372,1739095865460,-610.35,0.00011085,2]
[352426373,1739095865470,-704.18,0.00011085,2]
[352426374,1739095865479,-500.0,0.00011085,2]
[352426375,1739095865489,-641.82,0.00011085,2]
[352426376,1739095865498,-500.0,0.00011085,2]
[352426377,1739095865508,-756.47,0.00011085,2]
[352426378,1739095865518,-500.0,0.00011085,2]
[352426379,1739095865528,-697.0,0.00011086,2]
[352426380,1739095865538,-214.42718,0.00011086,2]
[352426381,1739095865548,-214.42718,0.00011086,2]
[352426382,1739095865559,-151.595202,0.00011086,2]
[352426383,1739095865568,-151.595202,0.00011086,2]
[352426384,1739095865578,-151.0,0.00011086,2]
[352426385,1739095865587,-151.0,0.00011086,2]
[352426386,1739095865597,-151.0,0.00011091,2]
[352426387,1739095865607,-151.0,0.00011091,2]
[352426388,1739095865616,-151.0,0.00011091,2]
[352426389,1739095865626,-453.0156851,0.00011099,2]
[352426390,1739095865636,-453.01568501,0.00011099,2]
[352426391,1739095865645,-453.01568501,0.00011099,2]
[352426392,1739095865655,-453.01568501,0.00011099,2]
[352426393,1739095865664,-453.01568501,0.00011099,2]
[352426394,1739095865675,-453.01568501,0.00011099,2]
[352426395,1739095865684,-453.01568501,0.00011099,2]
[352426396,1739095865694,-453.01568501,0.00011099,2]